bitfinex/quotes_ETHUSD_20230105
["timestamp","ask_amount","ask_price","bid_price","bid_amount"]
[1672959347567,37.71825348,1251.8,1251.7,0.87800165]
[1672959348536,40.7591047,1251.8,1251.7,0.87800165]
[1672959349748,51.6955425,1251.8,1251.7,1.65e-06]
[1672959349964,46.3587047,1251.8,1251.7,1.65e-06]
[1672959350176,49.3587047,1251.8,1251.7,1.65e-06]
[1672959350442,55.29524504,1251.8,1251.7,1.65e-06]
[1672959352962,55.29724504,1251.8,1251.7,1.65e-06]
[1672959353277,55.29524504,1251.8,1251.7,1.65e-06]
[1672959358644,50.29524504,1251.8,1251.7,1.65e-06]
[1672959358868,42.30675504,1251.8,1251.7,1.65e-06]
[1672959359033,47.30675504,1251.8,1251.7,1.65e-06]
[1672959359470,41.3702147,1251.8,1251.7,1.65e-06]
[1672959359664,46.31432737,1251.8,1251.7,1.65e-06]
[1672959360330,46.31432724,1251.8,1251.7,1.65e-06]
[1672959360702,46.31422117,1251.8,1251.7,1.65e-06]
[1672959360912,46.31422569,1251.8,1251.7,1.65e-06]
[1672959361161,41.3702147,1251.8,1251.7,1.65e-06]
[1672959365794,40.78847047,1251.8,1251.7,1.65e-06]
[1672959366001,41.33144414,1251.8,1251.7,1.65e-06]
[1672959366384,36.33144414,1251.8,1251.7,1.65e-06]
[1672959367594,41.33144414,1251.8,1251.7,1.65e-06]
[1672959368386,47.26798448,1251.8,1251.7,1.65e-06]
[1672959369258,55.25647448,1251.8,1251.7,1.65e-06]
[1672959373674,0.00297693,1251.7,1251.6,0.15035593]
[1672959373803,32.90395947,1251.7,1251.6,0.15035593]
[1672959387152,40.89308947,1251.7,1251.6,0.15035593]
[1672959396842,40.89308947,1251.7,1251.6,0.1473779]
[1672959398023,41.49268947,1251.7,1251.6,0.1473779]
[1672959398890,36.54824644,1251.7,1251.6,0.1473779]
[1672959400577,41.49575162,1251.7,1251.6,0.1473779]
[1672959402001,41.49775162,1251.7,1251.6,0.1473779]
[1672959402320,41.49575162,1251.7,1251.6,0.1473779]
[1672959403374,36.54824644,1251.7,1251.6,0.1473779]
[1672959403836,41.49574087,1251.7,1251.6,0.1473779]
[1672959406872,36.54824644,1251.7,1251.6,0.1473779]
[1672959407109,42.48478678,1251.7,1251.6,0.1473779]
[1672959408173,36.54824644,1251.7,1251.6,0.1473779]
[1672959408541,42.48478678,1251.7,1251.6,0.1473779]
[1672959408966,36.54824644,1251.7,1251.6,0.1473779]
[1672959409335,42.48478678,1251.7,1251.6,0.1473779]
[1672959410561,36.54824644,1251.7,1251.6,0.1473779]
[1672959412060,41.49458638,1251.7,1251.6,0.1473779]
[1672959412944,36.54824644,1251.7,1251.6,0.1473779]
[1672959414306,41.494504,1251.7,1251.6,0.1473779]
[1672959415524,36.54824644,1251.7,1251.6,0.1473779]
[1672959416269,41.49424094,1251.7,1251.6,0.1473779]
[1672959419897,42.07564703,1251.7,1251.6,0.1473779]
[1672959420533,42.07564703,1251.7,1251.6,0.14483856]
[1672959421704,48.01218737,1251.7,1251.6,0.14483856]
[1672959423041,53.01218737,1251.7,1251.6,0.14483856]
[1672959424158,53.01418737,1251.7,1251.6,0.14483856]
[1672959424401,53.01218737,1251.7,1251.6,0.14483856]
[1672959430462,48.01218737,1251.7,1251.6,0.14483856]
[1672959431412,53.01218737,1251.7,1251.6,0.14483856]
[1672959431864,53.24218737,1251.7,1251.6,0.14483856]
[1672959432295,56.24218737,1251.7,1251.6,0.14483856]
[1672959434260,50.30564703,1251.7,1251.6,0.14483856]
[1672959434528,56.23852601,1251.7,1251.6,0.14483856]
[1672959434739,56.23652601,1251.7,1251.6,0.14483856]
[1672959435259,56.23852601,1251.7,1251.6,0.14483856]
[1672959435421,56.23652601,1251.7,1251.6,0.14483856]
[1672959441702,56.23354908,1251.7,1251.6,0.14483856]
[1672959442035,51.23354908,1251.7,1251.6,0.14483856]
[1672959443038,56.23354908,1251.7,1251.6,0.14483856]
[1672959443878,56.23354908,1251.7,1251.6,0.14262349]
[1672959446620,56.23554908,1251.7,1251.6,0.14262349]
[1672959446761,56.23354908,1251.7,1251.6,0.14262349]
[1672959446972,56.23554908,1251.7,1251.6,0.14262349]
[1672959447327,56.23354908,1251.7,1251.6,0.14262349]
[1672959449095,51.23354908,1251.7,1251.6,0.14262349]
[1672959450021,56.23354908,1251.7,1251.6,0.14262349]
[1672959450998,56.23128803,1251.7,1251.6,0.14262349]
[1672959454184,56.68143444,1251.7,1251.6,0.14262349]
[1672959455914,45.75055546,1251.7,1251.6,0.14262349]
[1672959456172,50.75055546,1251.7,1251.6,0.14262349]
[1672959456498,56.68398522,1251.7,1251.6,0.14262349]
[1672959457760,50.75055546,1251.7,1251.6,0.14262349]
[1672959458567,56.68500918,1251.7,1251.6,0.14262349]
[1672959458916,50.75055546,1251.7,1251.6,0.14262349]
[1672959459283,56.68500805,1251.7,1251.6,0.14262349]
[1672959459701,50.75055546,1251.7,1251.6,0.14262349]
[1672959460329,56.68680782,1251.7,1251.6,0.14262349]
[1672959464636,50.75055546,1251.7,1251.6,0.14262349]
[1672959466954,56.68724515,1251.7,1251.6,0.14262349]
[1672959467165,45.75055546,1251.7,1251.6,0.14262349]
[1672959467825,51.68714797,1251.7,1251.6,0.14262349]
[1672959468214,45.75055546,1251.7,1251.6,0.14262349]
[1672959468428,51.6871362,1251.7,1251.6,0.14262349]
[1672959468869,56.6871362,1251.7,1251.6,0.14262349]
[1672959472000,50.75055546,1251.7,1251.6,0.14262349]
[1672959473616,50.75055546,1251.7,1251.6,0.13900777]
[1672959481628,45.75055546,1251.7,1251.6,0.13900777]
[1672959482367,50.75055546,1251.7,1251.6,0.13900777]
[1672959484218,42.34042906,1251.7,1251.6,0.13900777]
[1672959484570,50.32955906,1251.7,1251.6,0.13900777]
[1672959490374,45.32955906,1251.7,1251.6,0.13900777]
[1672959491410,50.32955906,1251.7,1251.6,0.13900777]
[1672959492832,44.39355487,1251.7,1251.6,0.13900777]
[1672959493844,48.89969013,1251.7,1251.6,0.13900777]
[1672959495284,48.89969013,1251.7,1251.6,0.13560559]
[1672959497094,49.12969013,1251.7,1251.6,0.13560559]
[1672959498466,55.06549293,1251.7,1251.6,0.13560559]
[1672959498675,55.06749293,1251.7,1251.6,0.13560559]
[1672959498848,55.06549293,1251.7,1251.6,0.13560559]
[1672959500011,50.06549293,1251.7,1251.6,0.13560559]
[1672959501079,55.06549293,1251.7,1251.6,0.13560559]
[1672959507032,50.06549293,1251.7,1251.6,0.13560559]
[1672959508120,55.06549293,1251.7,1251.6,0.13560559]
[1672959514231,50.06549293,1251.7,1251.6,0.13560559]
[1672959515053,55.06549293,1251.7,1251.6,0.13560559]
[1672959517961,55.06549293,1251.7,1251.6,0.1321458]
[1672959521170,50.06549293,1251.7,1251.6,0.1321458]
[1672959522075,55.06549293,1251.7,1251.6,0.1321458]
[1672959522474,49.12571639,1251.7,1251.6,0.1321458]
[1672959528064,44.12571639,1251.7,1251.6,0.1321458]
[1672959528274,50.06302299,1251.7,1251.6,0.1321458]
[1672959529223,55.06302299,1251.7,1251.6,0.1321458]
[1672959532564,49.12571639,1251.7,1251.6,0.1321458]
[1672959532941,55.06294759,1251.7,1251.6,0.1321458]
[1672959533124,50.55681233,1251.7,1251.6,0.1321458]
[1672959538401,42.56768233,1251.7,1251.6,0.1321458]
[1672959538556,42.33768233,1251.7,1251.6,0.1321458]
[1672959539085,39.33768233,1251.7,1251.6,0.1321458]
[1672959539869,33.40045113,1251.7,1251.6,0.1321458]
[1672959540101,39.33768233,1251.7,1251.6,0.1321458]
[1672959540455,33.40045113,1251.7,1251.6,0.1321458]
[1672959540930,39.33768233,1251.7,1251.6,0.1321458]
[1672959541139,33.40045113,1251.7,1251.6,0.1321458]
[1672959543088,39.33768233,1251.7,1251.6,0.1321458]
[1672959543299,33.40045113,1251.7,1251.6,0.1321458]
[1672959544074,33.40045113,1251.7,1251.6,0.12911159]
[1672959546466,38.34366806,1251.7,1251.6,0.12911159]
[1672959546678,33.34366806,1251.7,1251.6,0.12911159]
[1672959547582,38.34366806,1251.7,1251.6,0.12911159]
[1672959553509,33.34366806,1251.7,1251.6,0.12911159]
[1672959554699,38.34366806,1251.7,1251.6,0.12911159]
[1672959556479,34.36075334,1251.7,1251.6,0.12911159]
[1672959560269,18.38249334,1251.7,1251.6,0.12911159]
[1672959560475,13.38249334,1251.7,1251.6,0.12911159]
[1672959561066,21.37162334,1251.7,1251.6,0.12911159]
[1672959562285,37.34988334,1251.7,1251.6,0.12911159]
[1672959563006,42.34988334,1251.7,1251.6,0.12911159]
[1672959563256,33.60060734,1251.7,1251.6,0.12911159]
[1672959563462,29.41753641,1251.7,1251.6,0.12911159]
[1672959563657,33.60060699,1251.7,1251.6,0.12911159]
[1672959563846,33.60260699,1251.7,1251.6,0.12911159]
[1672959564057,33.60060699,1251.7,1251.6,0.12911159]
[1672959564423,28.60060699,1251.7,1251.6,0.12911159]
[1672959565333,28.59994613,1251.7,1251.6,0.12911159]
[1672959565686,24.41753641,1251.7,1251.6,0.12911159]
[1672959566750,32.40666641,1251.7,1251.6,0.12911159]
[1672959566909,29.36075334,1251.7,1251.6,0.12911159]
[1672959567121,37.34988334,1251.7,1251.6,0.12911159]
[1672959568481,29.36075334,1251.7,1251.6,0.12911159]
[1672959568745,37.34988334,1251.7,1251.6,0.12911159]
[1672959568963,29.36075334,1251.7,1251.6,0.126699]
[1672959569110,37.34988334,1251.7,1251.6,0.126699]
[1672959570846,29.36075334,1251.7,1251.6,0.126699]
[1672959571041,37.34988334,1251.7,1251.6,0.126699]
[1672959571259,29.36075334,1251.7,1251.6,0.126699]
[1672959571433,37.34988334,1251.7,1251.6,0.126699]
[1672959571845,29.36075334,1251.7,1251.6,0.126699]
[1672959572912,37.34988334,1251.7,1251.6,0.126699]
[1672959575051,29.36075334,1251.7,1251.6,0.126699]
[1672959576513,37.34988334,1251.7,1251.6,0.126699]
[1672959577105,29.36075334,1251.7,1251.6,0.126699]
[1672959577321,5.39336334,1251.7,1251.6,8.116469]
[1672959577531,5.39336334,1251.7,1251.6,0.225699]
[1672959577853,5.39336334,1251.7,1251.6,0.126699]
[1672959579145,5.39336334,1251.7,1251.6,8.116469]
[1672959579318,13.38249334,1251.7,1251.6,0.225699]
[1672959579531,13.38249334,1251.7,1251.6,0.126699]
[1672959582248,28.60166299,1251.7,1251.6,0.126699]
[1672959583519,20.61253299,1251.7,1251.6,0.126699]
[1672959587748,28.60166299,1251.7,1251.6,0.126699]
[1672959590609,28.60166299,1251.7,1251.6,0.12467374]
[1672959592055,20.61253299,1251.7,1251.6,0.12467374]
[1672959592296,4.63427299,1251.7,1251.6,0.12467374]
[1672959593336,12.62340299,1251.7,1251.6,0.12467374]
[1672959593729,8.43927641,1251.7,1251.6,0.12467374]
[1672959594396,12.62340299,1251.7,1251.6,0.12467374]
[1672959594713,8.43927641,1251.7,1251.6,0.12467374]
[1672959596032,16.42840641,1251.7,1251.6,0.12467374]
[1672959596245,20.61253299,1251.7,1251.6,0.12467374]
[1672959598381,4.63427299,1251.7,1251.6,0.12467374]
[1672959599102,28.60166299,1251.7,1251.6,0.12467374]
[1672959600026,36.59079299,1251.7,1251.6,0.12467374]
[1672959600253,41.34570398,1251.7,1251.6,0.12467374]
[1672959600848,42.10479433,1251.7,1251.6,0.12467374]
[1672959601808,13.31784334,1251.7,1251.6,0.12467374]
[1672959602021,28.53502975,1251.7,1251.6,0.12467374]
[1672959602439,12.55676975,1251.7,1251.6,0.12467374]
[1672959602670,28.53502975,1251.7,1251.6,0.12467374]
[1672959602904,20.54617358,1251.7,1251.6,0.12467374]
[1672959603063,4.56791358,1251.7,1251.6,0.12467374]
[1672959603479,4.56791358,1251.7,1251.6,0.12939005]
[1672959604351,12.55704358,1251.7,1251.6,0.12939005]
[1672959604575,20.54617358,1251.7,1251.6,0.12939005]
[1672959604757,12.55704358,1251.7,1251.6,0.12939005]
[1672959605132,20.54617358,1251.7,1251.6,0.12939005]
[1672959605258,12.55704358,1251.7,1251.6,0.12939005]
[1672959605471,4.56791358,1251.7,1251.6,0.12939005]
[1672959606000,28.53530358,1251.7,1251.6,0.12939005]
[1672959606381,12.55704358,1251.7,1251.6,0.12939005]
[1672959606850,4.56791358,1251.7,1251.6,0.12939005]
[1672959607498,4.56791358,1251.7,1251.6,16.10893005]
[1672959607691,4.56791358,1251.7,1251.6,10.65663354]
[1672959607904,4.56791358,1251.7,1251.6,18.64640354]
[1672959608136,4.56791358,1251.7,1251.6,10.65663354]
[1672959608466,3.970925,1251.7,1251.6,11.13519279]
[1672959608893,3.9705013,1251.7,1251.6,11.13519279]
[1672959609563,3.9705013,1251.7,1251.6,3.14542279]
[1672959609775,2.39025033,1251.7,1251.6,32.82643087]
[1672959610105,3.58566304,1252.0,1251.8,10.396]
[1672959610316,3.65166304,1252.1,1252.0,7.98722]
[1672959610546,3.58566304,1252.1,1252.0,24.35909467]
[1672959610777,0.066,1252.2,1252.0,24.35909467]
[1672959610989,0.05471296,1252.3,1252.1,24.25881467]
[1672959611150,0.05471296,1252.3,1252.1,27.64017406]
[1672959611359,0.05471296,1252.3,1252.1,28.11873331]
[1672959611782,0.05471296,1252.3,1252.2,3.98914951]
[1672959612191,0.05471296,1252.3,1252.2,4.46770876]
[1672959613295,0.05471296,1252.3,1252.2,8.76892797]
[1672959613504,0.05471296,1252.3,1252.2,34.83938471]
[1672959613764,0.05471296,1252.3,1252.2,37.83938471]
[1672959614962,0.05471296,1252.3,1252.2,33.54287955]
[1672959615186,0.05471296,1252.3,1252.2,37.83938471]
[1672959615971,0.05471296,1252.3,1252.2,33.54287955]
[1672959617129,0.05471296,1252.3,1252.2,9.58505955]
[1672959617713,0.05471296,1252.3,1252.2,17.57099955]
[1672959618286,0.05471296,1252.3,1252.2,25.55693955]
[1672959619190,0.05471296,1252.3,1252.2,5.59591004]
[1672959619393,0.05471296,1252.3,1252.2,13.10329079]
[1672959619609,0.05471296,1252.3,1252.2,5.11735079]
[1672959622005,0.59949323,1252.3,1252.2,5.11735079]
[1672959623539,0.59949323,1252.3,1252.2,29.07517079]
[1672959625009,0.59949323,1252.3,1252.2,33.0643203]
[1672959627185,0.59949323,1252.3,1252.2,37.8389785]
[1672959628006,0.59949323,1252.3,1252.2,46.4649785]
[1672959628384,0.06030915,1252.6,1252.3,2.0]
[1672959628744,0.06030915,1252.6,1252.5,2.0]
[1672959628954,0.06030915,1252.6,1252.5,32.22174997]
[1672959629171,0.06030915,1252.6,1252.5,17.83710825]
[1672959629399,0.06030915,1252.6,1252.5,25.82113825]
[1672959629532,0.06030915,1252.6,1252.5,29.52465779]
[1672959629910,0.06030915,1252.6,1252.5,26.25220169]
[1672959630235,0.06030915,1252.6,1252.5,25.24634266]
[1672959630991,0.06030915,1252.6,1252.5,33.22737266]
[1672959631100,0.06030915,1252.6,1252.5,33.23037266]
[1672959631630,0.06030915,1252.6,1252.5,25.24634266]
[1672959631842,0.06030915,1252.6,1252.5,33.23037266]
[1672959632324,0.06030915,1252.6,1252.5,37.51088312]
[1672959632472,0.06030915,1252.6,1252.5,45.90688312]
[1672959632681,0.06030915,1252.6,1252.5,46.13688312]
[1672959633891,0.06030915,1252.6,1252.5,47.34730437]
[1672959634210,9.15e-06,1252.6,1252.5,73.33509673]
[1672959634368,0.06596002,1252.7,1252.6,8.396]
[1672959634598,0.06596002,1252.7,1252.6,26.54538261]
[1672959634856,0.06596002,1252.7,1252.6,50.92052596]
[1672959635226,0.06596002,1252.7,1252.6,58.90391596]
[1672959635495,0.06596002,1252.7,1252.6,59.89170832]
[1672959635643,0.06596002,1252.7,1252.6,61.10212957]
[1672959636124,0.06596002,1252.7,1252.6,58.90391596]
[1672959637391,0.06596002,1252.7,1252.6,61.10212957]
[1672959637955,0.06596002,1252.7,1252.6,61.09912957]
[1672959638244,0.06596002,1252.7,1252.6,61.10212957]
[1672959638757,1.81312421,1253.0,1252.9,31.92592]
[1672959638969,1.81312421,1253.0,1252.9,72.92470671]
[1672959639114,1.81312421,1253.0,1252.9,73.18694935]
[1672959639923,1.81312421,1253.0,1252.9,65.20546935]
[1672959640079,1.81312421,1253.0,1252.9,61.47646981]
[1672959640431,1.81312421,1253.0,1252.9,49.24250935]
[1672959640770,1.81312421,1253.0,1252.9,41.26102935]
[1672959641372,1.81312421,1253.0,1252.9,2.11263674]
[1672959641582,25.75564421,1253.0,1252.8,3.0]
[1672959641796,26.35464421,1253.0,1252.8,3.43227946]
[1672959642115,10.39296421,1253.0,1252.8,0.43227946]
[1672959642476,2.41212421,1253.0,1252.8,0.43227946]
[1672959642689,10.39296421,1253.0,1252.8,0.43227946]
[1672959642963,26.35464421,1253.0,1252.8,0.43227946]
[1672959643272,18.37380421,1253.0,1252.8,0.43227946]
[1672959643424,18.37380421,1253.0,1252.8,3.43227946]
[1672959643628,2.41212421,1253.0,1252.8,3.43227946]
[1672959643843,2.41212421,1253.0,1252.8,5.94896341]
[1672959644111,2.41212421,1253.0,1252.8,6.04796341]
[1672959644263,10.39326421,1253.0,1252.8,6.04796341]
[1672959644473,18.37440421,1253.0,1252.8,6.04796341]
[1672959644718,10.39326421,1253.0,1252.8,6.04796341]
[1672959645137,18.37440421,1253.0,1252.8,6.04796341]
[1672959645899,10.39326421,1253.0,1252.8,6.04796341]
[1672959646424,18.37440421,1253.0,1252.8,6.04796341]
[1672959646634,26.35554421,1253.0,1252.8,6.04796341]
[1672959647517,26.35554421,1253.0,1252.8,3.53127946]
[1672959647727,34.33668421,1253.0,1252.8,0.43227946]
[1672959648011,34.33668421,1253.0,1252.7,21.73456001]
[1672959649361,0.599,1252.9,1252.7,21.73456001]
[1672959649632,7.98212,1252.8,1252.7,26.40632628]
[1672959649821,24.61026,1252.9,1252.7,14.83672628]
[1672959650129,16.56238,1252.9,1252.7,14.83672628]
[1672959650905,16.56238,1252.9,1252.7,15.26900574]
[1672959652859,8.58055,1252.9,1252.7,15.26900574]
[1672959653177,0.599,1252.9,1252.7,51.18905525]
[1672959653532,0.599,1252.9,1252.7,43.20630525]
[1672959654971,0.599,1252.9,1252.7,35.22355525]
[1672959655129,26.42165421,1253.0,1252.7,35.22355525]
[1672959655339,26.35565421,1253.0,1252.7,27.24080525]
[1672959655546,26.35565421,1253.0,1252.7,19.25815525]
[1672959656528,28.73299859,1253.0,1252.7,27.24083525]
[1672959656952,31.70471373,1253.0,1252.7,27.24084525]
[1672959658051,31.70471373,1253.0,1252.7,19.25815525]
[1672959658266,28.73299859,1253.0,1252.7,35.22361525]
[1672959658677,12.77048859,1253.0,1252.7,35.22361525]
[1672959658883,12.77048859,1253.0,1252.7,43.20636525]
[1672959659342,20.75159859,1253.0,1252.7,43.20636525]
[1672959659520,28.73270859,1253.0,1252.7,27.24086525]
[1672959659732,28.73270859,1253.0,1252.7,19.25815525]
[1672959660387,31.70442373,1253.0,1252.7,19.25815525]
[1672959661111,31.70442373,1253.0,1252.7,19.25416142]
[1672959662414,2.37734438,1252.9,1252.7,19.25416142]
[1672959662571,2.37734438,1252.9,1252.7,27.23680142]
[1672959662781,10.35900438,1252.9,1252.7,27.23680142]
[1672959663196,2.37734438,1252.9,1252.7,27.23680142]
[1672959663409,7.82718373,1253.0,1252.7,43.20230142]
[1672959663783,23.72333373,1253.0,1252.7,43.20230142]
[1672959663992,15.74225373,1253.0,1252.7,43.20230142]
[1672959664530,2.37734438,1252.9,1252.7,43.20230142]
[1672959665083,10.35882438,1252.9,1252.7,27.23691142]
[1672959666246,2.37734438,1252.8,1252.7,27.23691142]
[1672959666671,2.37734438,1252.8,1252.7,38.21966142]
[1672959666932,2.37734438,1252.8,1252.7,30.23691142]
[1672959668372,5.41505952,1252.9,1252.7,38.21966142]
[1672959668615,2.37734438,1252.8,1252.7,38.21966142]
[1672959668829,2.44334438,1252.9,1252.7,38.21966142]
[1672959668992,2.37734438,1252.9,1252.7,46.20241142]
[1672959670340,5.34905952,1252.9,1252.7,46.20241142]
[1672959670611,2.37734438,1252.9,1252.7,54.18516142]
[1672959671456,5.34905952,1252.9,1252.7,58.45127827]
[1672959671604,5.34905952,1252.9,1252.7,54.18516142]
[1672959672714,5.34905952,1252.9,1252.7,58.45126855]
[1672959672963,5.34905952,1252.9,1252.7,54.18516142]
[1672959673180,5.34905952,1252.9,1252.8,20.98914951]
[1672959673351,5.34905952,1252.9,1252.8,58.16865637]
[1672959673556,5.34905952,1252.9,1252.8,58.60093583]
[1672959674009,2.97171514,1252.9,1252.8,8.68330632]
[1672959674226,18.93467514,1252.9,1252.8,3.53127946]
[1672959674468,18.93467514,1252.9,1252.8,3.43227946]
[1672959675874,15.96296,1252.9,1252.8,3.43227946]
[1672959676662,18.94917391,1252.9,1252.8,3.43227946]
[1672959676868,15.96296,1252.9,1252.8,3.43227946]
[1672959677029,15.96296,1252.9,1252.8,6.65878065]
[1672959677243,19.52919508,1252.9,1252.8,6.75778065]
[1672959678919,19.52919508,1252.9,1252.8,0.53127946]
[1672959679127,27.51287277,1252.9,1252.7,28.83273245]
[1672959679337,2.98600512,1252.8,1252.7,32.82188196]
[1672959679583,2.98600512,1252.8,1252.7,35.82188196]
[1672959680937,19.59739277,1252.9,1252.7,35.82188196]
[1672959681160,19.53139277,1252.9,1252.7,35.82188196]
[1672959681713,2.98783091,1252.8,1252.7,59.76996196]
[1672959682073,2.98783091,1252.8,1252.7,51.78721196]
[1672959682385,2.98783091,1252.8,1252.7,35.82188196]
[1672959684283,2.98783091,1252.8,1252.7,35.81882506]
[1672959685936,2.98783091,1252.8,1252.7,43.80157506]
[1672959686383,2.98783091,1252.8,1252.7,35.81882506]
[1672959687903,2.98783091,1252.8,1252.7,43.80157506]
[1672959689066,2.98822493,1252.8,1252.7,43.80157506]
[1672959689974,2.98834096,1252.8,1252.7,43.80157506]
[1672959690179,2.98834096,1252.8,1252.7,35.81882506]
[1672959690512,3.56623508,1252.8,1252.7,35.81882506]
[1672959690728,3.56623508,1252.8,1252.7,43.80157506]
[1672959690889,3.56623508,1252.8,1252.7,51.78432506]
[1672959691103,3.56623508,1252.8,1252.7,43.80157506]
[1672959692164,19.59535508,1252.9,1252.7,43.80157506]
[1672959692425,19.52935508,1252.9,1252.7,43.80157506]
[1672959692742,3.56623508,1252.8,1252.7,51.78432506]
[1672959692886,3.63223508,1252.9,1252.7,51.78432506]
[1672959693101,3.56623508,1252.9,1252.7,43.80157506]
[1672959693332,2.98870177,1252.8,1252.7,51.78432506]
[1672959693628,2.98870177,1252.8,1252.7,59.76707506]
[1672959694069,2.98870177,1252.8,1252.7,51.78432506]
[1672959695381,2.98542301,1252.8,1252.7,51.78432506]
[1672959696428,3.63223508,1252.9,1252.7,51.78432506]
[1672959696598,3.56623508,1252.9,1252.7,51.78432506]
[1672959696810,11.54773508,1252.9,1252.7,35.81882506]
[1672959697159,3.56623508,1252.8,1252.7,35.81882506]
[1672959698631,3.56623508,1252.8,1252.7,43.80157506]
[1672959700987,3.56623508,1252.8,1252.7,35.81882506]
[1672959701196,19.59542508,1252.9,1252.7,35.81882506]
[1672959701456,27.51132508,1252.9,1252.7,35.81882506]
[1672959702046,19.52942508,1252.9,1252.7,35.81882506]
[1672959702307,3.56623508,1252.8,1252.7,35.81882506]
[1672959702561,3.56623508,1252.8,1252.7,43.80151506]
[1672959703100,2.39137905,1252.8,1252.7,64.46263932]
[1672959703301,2.39137905,1252.8,1252.7,80.44538932]
[1672959705739,2.39137905,1252.8,1252.7,76.18204452]
[1672959712789,2.39137905,1252.8,1252.7,68.19929452]
[1672959713439,5.44660286,1252.9,1252.7,68.19929452]
[1672959713643,5.44660286,1252.9,1252.8,26.94636]
[1672959713644,5.38060286,1252.9,1252.8,26.94636]
[1672959713958,5.38060286,1252.9,1252.8,34.66337545]
[1672959714207,5.38060286,1252.9,1252.8,10.71701545]
[1672959714394,5.38060286,1252.9,1252.8,34.66337545]
[1672959714576,2.98922381,1252.9,1252.8,34.66337545]
[1672959715369,5.3807894,1252.9,1252.8,34.66337545]
[1672959715692,2.98922381,1252.9,1252.8,34.66337545]
[1672959716052,2.98922381,1252.9,1252.8,18.69913545]
[1672959716439,2.98922381,1252.9,1252.8,10.71701545]
[1672959716632,2.98922381,1252.9,1252.8,3.099]
[1672959716633,7.98148,1252.9,1252.8,3.099]
[1672959716819,37.04460929,1253.0,1252.8,3.0]
[1672959717030,2.98889715,1252.9,1252.8,18.98212]
[1672959717204,2.98889715,1252.9,1252.8,33.08112]
[1672959717425,2.98889715,1252.9,1252.8,39.43374483]
[1672959717746,29.06339929,1253.0,1252.8,39.43374483]
[1672959717956,21.01634929,1253.0,1252.8,39.43374483]
[1672959718590,21.01634929,1253.0,1252.8,33.07807418]
[1672959719026,21.01634929,1253.0,1252.8,25.07807418]
[1672959719447,3.56623508,1252.9,1252.8,25.07807418]
[1672959720284,3.56623508,1252.9,1252.8,17.09595418]
[1672959725208,3.56623508,1252.9,1252.8,41.04231418]
[1672959725567,3.56623508,1252.9,1252.8,48.1869135]
[1672959726175,13.10135929,1253.0,1252.8,48.1869135]
[1672959726394,13.03535929,1253.0,1252.8,48.1869135]
[1672959726885,13.03535929,1253.0,1252.8,40.2047935]
[1672959727096,13.03535929,1253.0,1252.8,48.1869135]
[1672959727337,2.39131752,1252.9,1252.8,60.865447]
[1672959727521,2.39131752,1252.9,1252.8,56.87329652]
[1672959728406,2.39131752,1252.9,1252.8,65.49929652]
[1672959728574,7.25958863,1253.0,1252.9,2.5]
[1672959728765,7.19358863,1253.0,1252.9,13.28907916]
[1672959729023,7.19358863,1253.0,1252.9,40.76479862]
[1672959729212,4.80227111,1253.0,1252.9,40.76479862]
[1672959730041,7.19324926,1253.0,1252.9,48.76479862]
[1672959730675,4.20610236,1253.0,1252.9,48.76179862]
[1672959730901,4.20410236,1253.0,1252.9,48.76479862]
[1672959731287,1.81312421,1253.0,1252.9,48.76479862]
[1672959733289,1.81312421,1253.0,1252.9,69.41045486]
[1672959733659,5.49023346,1253.1,1253.0,44.00805669]
[1672959733660,0.066,1253.1,1253.0,44.00805669]
[1672959733812,1.07154117,1253.2,1253.0,74.42612512]
[1672959734016,1.07154117,1253.2,1253.1,3.98914951]
[1672959734250,1.07154117,1253.2,1253.1,30.92974951]
[1672959734476,1.07154117,1253.2,1253.1,31.46102897]
[1672959734669,1.07154117,1253.2,1253.1,32.26033952]
[1672959736952,0.97154117,1253.2,1253.1,32.26033952]
[1672959737522,0.0093335,1253.2,1253.1,40.24053952]
[1672959737865,0.0093335,1253.2,1253.1,52.90581744]
[1672959738074,0.0093335,1253.2,1253.1,64.66161744]
[1672959738427,0.0093335,1253.2,1253.1,64.68141744]
[1672959738583,0.0093335,1253.2,1253.1,60.41213952]
[1672959739200,0.0093335,1253.2,1253.1,43.80593952]
[1672959739415,0.0093335,1253.2,1253.1,35.82573952]
[1672959739622,0.0093335,1253.2,1253.1,43.80593952]
[1672959739898,0.0093335,1253.2,1253.1,51.78613952]
[1672959741420,2.39654461,1253.2,1253.1,51.78613952]
[1672959741892,0.0093335,1253.2,1253.1,51.78613952]
[1672959742100,0.0093335,1253.2,1253.1,59.76633952]
[1672959742412,2.36695569,1253.3,1253.2,23.93871]
[1672959742632,2.36695569,1253.3,1253.2,48.43015109]
[1672959742847,2.36695569,1253.3,1253.2,51.43015109]
[1672959743151,5.35354973,1253.3,1253.2,51.43015109]
[1672959743304,2.36695569,1253.3,1253.2,51.43015109]
[1672959744788,2.36695569,1253.3,1253.2,43.45058109]
[1672959746209,2.36695569,1253.3,1253.2,43.88286055]
[1672959746790,0.14613411,1253.4,1253.2,43.88286055]
[1672959746994,3.06672815,1253.4,1253.3,10.97893]
[1672959747206,3.06672815,1253.4,1253.3,16.18614197]
[1672959749312,3.06672815,1253.4,1253.3,40.14400197]
[1672959749666,3.06672815,1253.4,1253.3,24.18614197]
[1672959750141,3.06672815,1253.4,1253.3,36.15422148]
[1672959750363,5.45230104,1253.4,1253.3,44.13315148]
[1672959751772,5.45230104,1253.4,1253.3,36.15422148]
[1672959752659,5.45230104,1253.4,1253.3,44.13315148]
[1672959752868,5.45230104,1253.4,1253.3,36.15422148]
[1672959753124,5.45230104,1253.4,1253.3,44.13315148]
[1672959753338,2.465707,1253.4,1253.3,44.13315148]
[1672959753662,0.08013411,1253.4,1253.3,52.11208148]
[1672959753872,0.08013411,1253.4,1253.3,56.3813594]
[1672959754023,0.08013411,1253.4,1253.3,56.78985664]
[1672959755014,0.08013411,1253.4,1253.3,52.52057872]
[1672959755472,0.08013411,1253.4,1253.3,44.54164872]
[1672959756165,0.08013411,1253.4,1253.3,52.52057872]
[1672959758113,0.08013411,1253.4,1253.3,44.54164872]
[1672959758637,0.08013411,1253.4,1253.3,52.52057872]
[1672959759688,0.08013411,1253.4,1253.3,57.20692664]
[1672959760095,0.08013411,1253.4,1253.3,52.93764872]
[1672959761003,0.08013411,1253.4,1253.3,57.20692664]
[1672959761372,0.08013411,1253.4,1253.3,65.18585664]
[1672959767523,0.08013411,1253.4,1253.3,60.91657872]
[1672959768364,0.08013411,1253.4,1253.3,52.93764872]
[1672959768835,0.08013411,1253.4,1253.3,60.91657872]
[1672959769315,0.08013411,1253.4,1253.3,65.18585664]
[1672959770973,0.08013411,1253.4,1253.3,52.93764872]
[1672959771120,0.08013411,1253.4,1253.3,52.93466792]
[1672959771332,0.08013411,1253.4,1253.3,28.58080792]
[1672959771649,0.08013411,1253.4,1253.3,36.55973792]
[1672959771859,0.08013411,1253.4,1253.3,44.53866792]
[1672959772065,0.08013411,1253.4,1253.3,28.58080792]
[1672959772486,2.465707,1253.4,1253.3,0.099]
[1672959772697,19.62210815,1253.4,1253.1,11.6248]
[1672959772967,2.98492381,1253.3,1253.1,15.61394951]